bitfinex/quotes_BTCUSD_20251011
["timestamp","ask_amount","ask_price","bid_price","bid_amount"]
[1760225690121,5.15023133,111220.0,111210.0,0.18292547]
[1760225690519,1.02825333,111220.0,111210.0,0.18292547]
[1760225690749,5.15023133,111220.0,111210.0,0.18292547]
[1760225693262,4.53443029,111220.0,111210.0,0.20951547]
[1760225693487,4.53443029,111220.0,111210.0,0.27032547]
[1760225693488,4.15804363,111220.0,111210.0,0.27032547]
[1760225693715,4.49804363,111220.0,111210.0,0.27032547]
[1760225694351,4.61310297,111220.0,111210.0,0.23075547]
[1760225694559,5.13951467,111220.0,111210.0,0.18492547]
[1760225695233,5.13951467,111220.0,111210.0,0.18392547]
[1760225695440,5.13951467,111220.0,111210.0,0.18292547]
[1760225696283,4.49804363,111220.0,111210.0,0.27032547]
[1760225696704,4.52438363,111220.0,111210.0,0.18292547]
[1760225696919,4.52438363,111220.0,111210.0,0.20951547]
[1760225697354,5.08900845,111220.0,111210.0,0.20951547]
[1760225697788,4.50761741,111220.0,111210.0,0.20951547]
[1760225698216,4.50761741,111220.0,111210.0,0.23075547]
[1760225700629,4.48127741,111220.0,111210.0,0.27032547]
[1760225701721,0.35929941,111220.0,111210.0,0.27032547]
[1760225701939,0.11352175,111240.0,111230.0,0.1798076]
[1760225702156,4.72855395,111240.0,111230.0,0.2716876]
[1760225702364,4.20330793,111240.0,111230.0,0.2716876]
[1760225702582,4.17907741,111240.0,111230.0,0.2716876]
[1760225702812,0.39709941,111240.0,111230.0,0.2716876]
[1760225703050,4.499778,111240.0,111230.0,0.2716876]
[1760225703263,4.51907741,111240.0,111230.0,0.2716876]
[1760225703484,4.54496741,111240.0,111230.0,0.2290876]
[1760225703714,4.98886463,111240.0,111230.0,0.1798076]
[1760225703940,4.90014529,111240.0,111230.0,0.1798076]
[1760225704584,4.90014529,111240.0,111230.0,0.2081276]
[1760225704724,4.51907741,111240.0,111230.0,0.2716876]
[1760225705140,0.3778,111240.0,111230.0,0.2716876]
[1760225705800,4.499778,111240.0,111230.0,0.2716876]
[1760225707435,4.499778,111240.0,111230.0,0.27344803]
[1760225707865,4.499778,111240.0,111230.0,0.27544803]
[1760225708020,4.52348237,111240.0,111230.0,0.27544803]
[1760225708223,5.13069481,111240.0,111230.0,0.18356803]
[1760225708481,5.13069481,111240.0,111230.0,0.21188803]
[1760225708683,5.10699044,111240.0,111230.0,0.18356803]
[1760225709015,5.14095044,111240.0,111230.0,0.18356803]
[1760225709219,5.14095044,111240.0,111230.0,0.00376043]
[1760225709220,5.32074188,111240.0,111230.0,0.00376043]
[1760225709555,5.16030107,111240.0,111230.0,0.18156803]
[1760225709780,1.03832307,111240.0,111230.0,0.18156803]
[1760225710013,5.16030107,111240.0,111230.0,0.18156803]
[1760225710562,5.12634107,111240.0,111230.0,0.20988803]
[1760225710768,5.10699044,111240.0,111230.0,0.23084803]
[1760225711148,0.40369,111240.0,111230.0,0.23084803]
[1760225711361,4.525668,111240.0,111230.0,0.23084803]
[1760225711711,0.46987912,111240.0,111230.0,0.18156803]
[1760225712077,5.14095044,111240.0,111230.0,0.18156803]
[1760225712280,5.16030052,111240.0,111230.0,0.18156803]
[1760225713643,5.34009196,111240.0,111230.0,0.18156803]
[1760225715361,5.34009196,111240.0,111230.0,0.00176043]
[1760225716052,5.36422341,111240.0,111230.0,0.00176043]
[1760225716273,5.45294275,111240.0,111230.0,0.00176043]
[1760225716921,4.87162031,111240.0,111230.0,0.00176043]
[1760225717129,5.34109196,111240.0,111230.0,0.00176043]
[1760225717337,5.34109804,111240.0,111230.0,0.00176043]
[1760225717547,5.21402179,111240.0,111230.0,0.00176043]
[1760225717806,1.09204379,111240.0,111230.0,0.00176043]
[1760225718042,5.21402179,111240.0,111230.0,0.00176043]
[1760225718265,1.18076313,111240.0,111230.0,0.00176043]
[1760225718471,5.30274113,111240.0,111230.0,0.00176043]
[1760225719774,1.18076313,111240.0,111230.0,0.00176043]
[1760225719995,5.30274113,111240.0,111230.0,0.00176043]
[1760225721227,5.32693633,111240.0,111230.0,0.00176043]
[1760225721657,1.20495833,111240.0,111230.0,0.00176043]
[1760225721863,5.32693633,111240.0,111230.0,0.00176043]
[1760225722286,5.34374837,111240.0,111230.0,0.00176043]
[1760225722492,1.22177037,111240.0,111230.0,0.00176043]
[1760225722692,5.34374837,111240.0,111230.0,0.00176043]
[1760225723524,4.80078284,111240.0,111230.0,0.00176043]
[1760225723747,5.07523759,111240.0,111230.0,0.18156803]
[1760225723968,5.04127759,111240.0,111230.0,0.18156803]
[1760225724177,5.05842555,111240.0,111230.0,0.18156803]
[1760225724602,5.00027035,111240.0,111230.0,0.18156803]
[1760225724812,0.91225235,111240.0,111230.0,0.18156803]
[1760225725022,5.03423035,111240.0,111230.0,0.18156803]
[1760225725228,5.12294969,111240.0,111230.0,0.18156803]
[1760225725651,5.30274113,111240.0,111230.0,0.00176043]
[1760225725893,5.32693633,111240.0,111230.0,0.00176043]
[1760225726324,5.23821699,111240.0,111230.0,0.00176043]
[1760225726533,5.25502818,111240.0,111230.0,0.00176043]
[1760225727176,1.13305018,111240.0,111230.0,0.00176043]
[1760225727395,1.47833527,111240.0,111230.0,0.00176043]
[1760225727606,5.60031327,111240.0,111230.0,0.00176043]
[1760225727817,5.68903261,111240.0,111230.0,0.00176043]
[1760225728681,1.56705461,111240.0,111230.0,0.00176043]
[1760225728884,5.68903261,111240.0,111230.0,0.00176043]
[1760225729714,1.56705461,111240.0,111230.0,0.00176043]
[1760225729928,2.08686449,111240.0,111230.0,0.00176043]
[1760225730129,6.20884249,111240.0,111230.0,0.00176043]
[1760225730557,6.20884249,111240.0,111210.0,0.00015094]
[1760225730558,5.14180177,111220.0,111210.0,0.00015094]
[1760225730772,0.34,111210.0,111200.0,0.07162362]
[1760225730981,4.64185029,111190.0,111180.0,0.07162362]
[1760225731201,5.51690157,111190.0,111180.0,0.07162362]
[1760225731417,4.461978,111180.0,111160.0,0.28140315]
[1760225731634,4.53717364,111170.0,111160.0,0.28140315]
[1760225731855,4.59648364,111170.0,111160.0,0.18881953]
[1760225732059,4.121978,111160.0,111150.0,0.20125868]
[1760225732284,4.52174364,111160.0,111150.0,0.20125868]
[1760225732492,4.54852364,111160.0,111150.0,0.22685868]
[1760225732707,4.54852364,111160.0,111150.0,0.22736216]
[1760225733170,4.54852364,111160.0,111150.0,0.22836216]
[1760225733368,0.42654564,111160.0,111150.0,0.22836216]
[1760225733598,0.02678,111160.0,111150.0,0.22836216]
[1760225733801,4.148758,111160.0,111150.0,0.22836216]
[1760225734006,4.60347126,111160.0,111150.0,0.22836216]
[1760225734226,4.60347126,111160.0,111150.0,0.22936216]
[1760225735076,0.35543,111170.0,111150.0,0.22936216]
[1760225735290,4.97391063,111170.0,111160.0,0.17992083]
[1760225735499,5.00069063,111170.0,111160.0,0.17992083]
[1760225735924,4.96816063,111170.0,111160.0,0.17992083]
[1760225736533,0.84618263,111170.0,111160.0,0.17992083]
[1760225736752,5.08940995,111170.0,111160.0,0.17992083]
[1760225737200,0.96743195,111170.0,111160.0,0.17992083]
[1760225737401,5.08940995,111170.0,111160.0,0.17992083]
[1760225738035,0.96743195,111170.0,111160.0,0.17992083]
[1760225738214,5.08940995,111170.0,111160.0,0.17992083]
[1760225739078,4.96816063,111170.0,111160.0,0.20552083]
[1760225739256,4.47123737,111170.0,111160.0,0.26536083]
[1760225739462,4.49801737,111170.0,111160.0,0.26536083]
[1760225739660,5.00069063,111170.0,111160.0,0.17992083]
[1760225739860,5.08940997,111170.0,111160.0,0.17992083]
[1760225740614,0.96743197,111170.0,111160.0,0.17992083]
[1760225740814,5.08940997,111170.0,111160.0,0.17992083]
[1760225741036,0.96743197,111170.0,111160.0,0.17992083]
[1760225741235,0.96743197,111170.0,111160.0,0.18403166]
[1760225741439,0.71718693,111170.0,111160.0,0.18403166]
[1760225741637,4.83916493,111170.0,111160.0,0.18403166]
[1760225742877,0.71718693,111170.0,111160.0,0.18403166]
[1760225743081,4.83916493,111170.0,111160.0,0.18403166]
[1760225743314,4.80663493,111170.0,111160.0,0.18403166]
[1760225743523,4.83916493,111170.0,111160.0,0.18403166]
[1760225743733,5.01906958,111170.0,111160.0,0.00411083]
[1760225743936,4.83916493,111170.0,111160.0,0.18403166]
[1760225744140,0.71718693,111170.0,111160.0,0.18403166]
[1760225744349,4.83916493,111170.0,111160.0,0.18403166]
[1760225744552,4.92788427,111170.0,111160.0,0.18403166]
[1760225744758,0.80590627,111170.0,111160.0,0.18403166]
[1760225744963,0.80590627,111170.0,111160.0,0.00411083]
[1760225744964,5.01906958,111170.0,111160.0,0.00411083]
[1760225745170,5.05690958,111170.0,111160.0,0.00411083]
[1760225745377,5.10629004,111170.0,111160.0,0.00411083]
[1760225746012,4.89623349,111170.0,111160.0,0.18403166]
[1760225746206,5.05690958,111170.0,111160.0,0.18403166]
[1760225746487,5.0761357,111170.0,111160.0,0.00411083]
[1760225746699,5.18154438,111170.0,111160.0,0.00411083]
[1760225747848,5.09282504,111170.0,111160.0,0.00411083]
[1760225749108,0.97084704,111170.0,111160.0,0.00411083]
[1760225749313,4.88039039,111170.0,111160.0,0.18403166]
[1760225749760,4.86370105,111170.0,111160.0,0.18403166]
[1760225750162,4.89639105,111170.0,111160.0,0.18403166]
[1760225750367,4.42567253,111170.0,111160.0,0.21169166]
[1760225750566,4.88038579,111170.0,111160.0,0.23146166]
[1760225750975,4.86370105,111170.0,111160.0,0.23146166]
[1760225751174,0.74172305,111170.0,111160.0,0.23146166]
[1760225751380,4.8803884,111170.0,111160.0,0.23146166]
[1760225752020,0.7584104,111170.0,111160.0,0.23146166]
[1760225752219,4.8803884,111170.0,111160.0,0.23146166]
[1760225752624,4.86370105,111170.0,111160.0,0.23146166]
[1760225753317,4.36677779,111170.0,111160.0,0.27063166]
[1760225753524,4.34755167,111170.0,111160.0,0.27063166]
[1760225755285,4.3668096,111170.0,111160.0,0.27063166]
[1760225755875,4.4103196,111170.0,111160.0,0.23146166]
[1760225757177,4.86503286,111170.0,111160.0,0.23146166]
[1760225757380,4.8817692,111170.0,111160.0,0.23146166]
[1760225758094,4.8817692,111170.0,111160.0,0.27063166]
[1760225758307,4.8538492,111170.0,111160.0,0.27063166]
[1760225758674,4.8817692,111170.0,111160.0,0.23146166]
[1760225759076,4.89193277,111170.0,111160.0,0.21169166]
[1760225759430,4.9059644,111170.0,111160.0,0.23146166]
[1760225759633,4.40774114,111170.0,111160.0,0.27063166]
[1760225759839,4.80783607,111170.0,111160.0,0.27063166]
[1760225760046,4.82272607,111170.0,111160.0,0.27063166]
[1760225760247,4.85064607,111170.0,111160.0,0.23146166]
[1760225760469,4.85904029,111170.0,111160.0,0.23146166]
[1760225760666,4.85904029,111170.0,111160.0,0.22146166]
[1760225760874,4.85904029,111170.0,111160.0,0.26063166]
[1760225761079,4.85904029,111170.0,111160.0,0.22146166]
[1760225761294,4.83112029,111170.0,111160.0,0.26063166]
[1760225762260,4.81623029,111170.0,111160.0,0.26063166]
[1760225762463,4.81623029,111170.0,111160.0,0.22146166]
[1760225762464,4.85888029,111170.0,111160.0,0.22146166]
[1760225763154,4.82104029,111170.0,111160.0,0.22146166]
[1760225763522,4.82104029,111170.0,111160.0,0.17403166]
[1760225763739,4.82104029,111170.0,111160.0,0.19983166]
[1760225763966,4.82104029,111170.0,111160.0,0.22071166]
[1760225764295,4.461978,111160.0,111150.0,0.1808405]
[1760225764496,5.32234614,111160.0,111150.0,0.1808405]
[1760225764698,4.98200121,111160.0,111150.0,0.1808405]
[1760225764910,1.26851505,111160.0,111150.0,0.1808405]
[1760225765108,5.39049305,111160.0,111150.0,0.1808405]
[1760225765314,5.47921239,111160.0,111150.0,0.1808405]
[1760225765515,5.39049305,111160.0,111150.0,0.1808405]
[1760225765931,5.39850086,111160.0,111150.0,0.1808405]
[1760225766324,1.27652286,111160.0,111150.0,0.1808405]
[1760225766568,5.39850086,111160.0,111150.0,0.1808405]
[1760225766801,4.99059396,111160.0,111150.0,0.1808405]
[1760225767019,4.99059396,111160.0,111150.0,0.2066405]
[1760225767492,4.99059396,111160.0,111150.0,0.1808405]
[1760225767917,0.86861596,111160.0,111150.0,0.1808405]
[1760225768124,4.99059396,111160.0,111150.0,0.1808405]
[1760225768356,4.95840214,111160.0,111150.0,0.2066405]
[1760225768631,4.95840214,111160.0,111150.0,0.2275205]
[1760225768836,0.83642414,111160.0,111150.0,0.2275205]
[1760225769039,4.95840214,111160.0,111150.0,0.2275205]
[1760225769474,4.93064214,111160.0,111150.0,0.2689405]
[1760225769682,4.93063936,111160.0,111150.0,0.2689405]
[1760225769912,4.92224523,111160.0,111150.0,0.269528]
[1760225770133,4.98199523,111160.0,111150.0,0.181428]
[1760225770348,5.39048412,111160.0,111150.0,0.181428]
[1760225770509,5.42267594,111160.0,111150.0,0.181428]
[1760225770871,1.30069794,111160.0,111150.0,0.181428]
[1760225771318,5.42267594,111160.0,111150.0,0.181428]
[1760225771551,5.51139528,111160.0,111150.0,0.181428]
[1760225772001,1.38941728,111160.0,111150.0,0.181428]
[1760225772225,5.69131611,111160.0,111150.0,0.181428]
[1760225772454,1.36523925,111160.0,111150.0,0.181428]
[1760225772913,5.48721725,111160.0,111150.0,0.181428]
[1760225773397,5.51138412,111160.0,111150.0,0.181428]
[1760225773910,1.38940612,111160.0,111150.0,0.181428]
[1760225774135,5.51138412,111160.0,111150.0,0.181428]
[1760225774370,1.38940612,111160.0,111150.0,0.181428]
[1760225774595,5.42266478,111160.0,111150.0,0.181428]
[1760225774842,1.30068678,111160.0,111150.0,0.181428]
[1760225775123,5.42266478,111160.0,111150.0,0.181428]
[1760225775845,1.30068678,111160.0,111150.0,0.181428]
[1760225776106,4.55433096,111160.0,111150.0,0.228108]
[1760225776344,4.94999407,111160.0,111150.0,0.228108]
[1760225777557,4.90566428,111160.0,111150.0,0.228108]
[1760225777819,4.87790428,111160.0,111150.0,0.269528]
[1760225778067,4.85373741,111160.0,111150.0,0.269528]
[1760225779043,4.88149741,111160.0,111150.0,0.228108]
[1760225779523,4.49800949,111160.0,111150.0,0.269528]
[1760225779771,4.85373741,111160.0,111150.0,0.269528]
[1760225780018,4.85373941,111160.0,111150.0,0.269528]
[1760225781677,0.01925793,111160.0,111150.0,0.269528]
[1760225781928,4.17314651,111170.0,111160.0,0.17992083]
[1760225782158,4.19240444,111170.0,111160.0,0.26802083]
[1760225782387,4.50823757,111170.0,111160.0,0.26802083]
[1760225782622,4.49146134,111170.0,111160.0,0.26802083]
[1760225783321,4.47220341,111170.0,111160.0,0.26802083]
[1760225783564,4.82793133,111170.0,111160.0,0.26802083]
[1760225784054,4.61707292,111170.0,111160.0,0.26802083]
[1760225786779,4.62623204,111170.0,111160.0,0.26802083]
[1760225788048,0.05494,111190.0,111160.0,0.63274479]
[1760225788049,0.03784,111190.0,111160.0,0.63274479]
[1760225788249,3.921345,111180.0,111170.0,0.26018131]
[1760225788421,4.261345,111180.0,111170.0,0.26799085]
[1760225788627,0.34,111180.0,111170.0,0.26799085]
[1760225789020,0.34911136,111180.0,111170.0,0.26799085]
[1760225789283,4.31491292,111190.0,111180.0,0.17988846]
[1760225789407,4.65491292,111190.0,111180.0,0.22656846]
[1760225789607,4.65491292,111190.0,111180.0,0.26798846]
[1760225790833,4.261345,111180.0,111170.0,0.17989085]
[1760225791048,4.61707292,111180.0,111170.0,0.18089085]
[1760225791270,4.64483292,111180.0,111170.0,0.20669085]
[1760225791512,4.62616697,111180.0,111170.0,0.26799085]
[1760225791705,4.27043905,111180.0,111170.0,0.26799085]
[1760225791919,4.62616697,111180.0,111170.0,0.26799085]
[1760225792400,4.27043905,111180.0,111170.0,0.26799085]
[1760225793400,0.37784,111190.0,111180.0,0.17988846]
[1760225793658,0.04693294,111190.0,111180.0,0.26510846]
[1760225794016,0.38693294,111190.0,111180.0,0.26510846]
[1760225794359,0.38810743,111190.0,111180.0,0.26510846]
[1760225800401,4.76679388,111190.0,111180.0,0.26510846]
[1760225800614,4.70922035,111190.0,111180.0,0.22614846]
[1760225801023,4.74031035,111190.0,111180.0,0.17988846]
[1760225801291,4.70922035,111190.0,111180.0,0.17988846]
[1760225801877,0.78787535,111190.0,111180.0,0.17988846]
[1760225802079,4.70922035,111190.0,111180.0,0.20585846]
[1760225802251,4.30945243,111190.0,111180.0,0.26487846]
[1760225802464,4.66518035,111190.0,111180.0,0.26487846]
[1760225803034,4.30945243,111190.0,111180.0,0.26487846]
[1760225804778,4.66518035,111190.0,111180.0,0.26487846]
[1760225806018,4.70722035,111190.0,111180.0,0.22516846]
[1760225806221,4.68138035,111190.0,111180.0,0.26487846]
[1760225806907,4.66518035,111190.0,111180.0,0.26487846]
[1760225807319,4.69102035,111190.0,111180.0,0.22516846]
[1760225807516,4.70722035,111190.0,111180.0,0.17988846]
[1760225807725,4.70722035,111190.0,111180.0,0.20585846]
[1760225808751,4.79593969,111190.0,111180.0,0.20585846]
[1760225808970,4.82702969,111190.0,111180.0,0.17988846]
[1760225809199,4.82702969,111190.0,111170.0,0.17989085]
[1760225809200,4.261345,111180.0,111170.0,0.17989085]
[1760225809428,4.261345,111170.0,111160.0,0.18988296]
[1760225809629,4.68296522,111170.0,111160.0,0.18988296]
[1760225809840,4.68889292,111170.0,111160.0,0.18988296]
[1760225810051,0.76754792,111170.0,111160.0,0.18988296]
[1760225810285,1.05545837,111170.0,111160.0,0.00996213]
[1760225810501,4.88808403,111170.0,111160.0,0.18988296]
[1760225810947,5.2679434,111170.0,111160.0,0.00096609]
[1760225811162,4.91221548,111170.0,111160.0,0.00096609]
[1760225811377,0.99087048,111170.0,111160.0,0.00096609]
[1760225811823,4.98003769,111170.0,111160.0,0.00096609]
[1760225812038,5.06875703,111170.0,111160.0,0.00096609]
[1760225812930,5.04462558,111170.0,111160.0,0.00096609]
[1760225813142,1.03456124,111170.0,111160.0,0.18088692]
[1760225813382,4.95590624,111170.0,111160.0,0.18088692]
[1760225813606,4.95590624,111170.0,111160.0,0.00096609]
[1760225814331,1.03456124,111170.0,111160.0,0.00096609]
[1760225814572,4.95590624,111170.0,111160.0,0.00096609]
[1760225814827,5.04462558,111170.0,111160.0,0.00096609]
[1760225815073,5.4003535,111170.0,111160.0,0.00096609]
[1760225815326,5.04462558,111170.0,111160.0,0.00096609]
[1760225815645,1.12328058,111170.0,111160.0,0.00096609]
[1760225815867,5.04462558,111170.0,111160.0,0.00096609]
[1760225816082,4.95590624,111170.0,111160.0,0.00096609]
[1760225816478,1.03456124,111170.0,111160.0,0.00096609]
[1760225816704,4.95590624,111170.0,111160.0,0.00096609]
[1760225816891,4.9726337,111170.0,111160.0,0.00096609]
[1760225817051,5.41708096,111170.0,111160.0,0.00096609]
[1760225817858,5.52069348,111170.0,111160.0,0.00096609]
[1760225818105,5.52069348,111170.0,111150.0,0.00090348]
[1760225818106,4.44126583,111160.0,111150.0,0.00090348]
[1760225818259,1.25066313,111160.0,111150.0,0.00090348]
[1760225818460,5.22893813,111160.0,111150.0,0.00090348]
[1760225818726,5.31765745,111160.0,111150.0,0.00149097]
[1760225819881,1.30759313,111160.0,111150.0,0.00149097]
[1760225820080,5.22893813,111160.0,111150.0,0.00149097]
[1760225820695,5.2289029,111160.0,111150.0,0.00149097]
[1760225821139,1.3075579,111160.0,111150.0,0.00149097]
[1760225821317,5.2289029,111160.0,111150.0,0.00149097]
[1760225821518,5.31762224,111160.0,111150.0,0.00149097]
[1760225821799,1.39627724,111160.0,111150.0,0.00149097]
[1760225821957,5.33432717,111160.0,111150.0,0.00149097]
[1760225822152,1.39627724,111160.0,111150.0,0.00149097]
[1760225822354,5.31762224,111160.0,111150.0,0.00149097]
[1760225822557,1.39627724,111160.0,111150.0,0.00149097]
[1760225822764,5.2289029,111160.0,111150.0,0.00149097]
[1760225823612,0.51993702,111150.0,111140.0,0.0004]
[1760225823747,4.87289184,111150.0,111140.0,0.00053569]
[1760225823946,0.97671684,111150.0,111140.0,0.00112327]
[1760225824362,4.89806184,111150.0,111140.0,0.00112327]
[1760225824597,4.98678118,111150.0,111140.0,0.00112327]
[1760225824811,5.00601223,111150.0,111140.0,0.00112327]
[1760225825017,1.08466723,111150.0,111140.0,0.00112327]
[1760225825224,5.00601223,111150.0,111140.0,0.00112327]
[1760225826117,1.08466723,111150.0,111140.0,0.00112327]
[1760225826319,5.00601223,111150.0,111140.0,0.00112327]
[1760225827273,4.93398802,111150.0,111140.0,0.00112327]
[1760225827765,1.01264302,111150.0,111140.0,0.00112327]
[1760225827993,4.93398802,111150.0,111140.0,0.00112327]
[1760225828591,1.01264302,111150.0,111140.0,0.00112327]
[1760225828759,4.93398802,111150.0,111140.0,0.00112327]
[1760225828964,5.02270736,111150.0,111140.0,0.00112327]
[1760225830031,1.10136236,111150.0,111140.0,0.00112327]
[1760225830241,5.02270736,111150.0,111140.0,0.00112327]
[1760225831322,1.10136236,111150.0,111140.0,0.00112327]
[1760225831535,5.02270736,111150.0,111140.0,0.00112327]
[1760225832176,1.10136236,111150.0,111140.0,0.00112327]
[1760225832587,5.02270736,111150.0,111140.0,0.00112327]
[1760225832995,4.99255546,111150.0,111140.0,0.00112327]
[1760225833829,1.07121046,111150.0,111140.0,0.00112327]
[1760225834258,5.01661949,111150.0,111140.0,0.00112327]
[1760225835527,1.09527449,111150.0,111140.0,0.00112327]
[1760225835732,5.01661949,111150.0,111140.0,0.00112327]
[1760225835937,4.92790015,111150.0,111140.0,0.18107648]
[1760225836150,4.92790015,111150.0,111140.0,0.00112327]
[1760225836354,1.00655515,111150.0,111140.0,0.00112327]
[1760225836762,4.96574015,111150.0,111140.0,0.00112327]
[1760225836965,5.05445949,111150.0,111140.0,0.00112327]
[1760225837380,5.08665131,111150.0,111140.0,0.00112327]
[1760225837589,4.81799495,111150.0,111140.0,0.18107648]
[1760225837802,4.46226703,111150.0,111140.0,0.18107648]
[1760225838011,4.78768495,111150.0,111140.0,0.18107648]
[1760225838203,4.81799495,111150.0,111140.0,0.18107648]
[1760225838534,0.83414813,111150.0,111140.0,0.22563648]
[1760225838743,0.43783021,111150.0,111140.0,0.26496648]
[1760225838950,0.39453513,111150.0,111140.0,0.26496648]
[1760225839149,4.35567208,111150.0,111140.0,0.26496648]
[1760225839350,4.37490313,111150.0,111140.0,0.26496648]
[1760225839547,4.35917521,111150.0,111140.0,0.26496648]
[1760225839793,4.75937907,111150.0,111140.0,0.26496648]
[1760225840580,4.73531504,111150.0,111140.0,0.26496648]
[1760225841255,4.83398299,111150.0,111140.0,0.22563648]
[1760225841603,4.80881299,111150.0,111140.0,0.26496648]
[1760225841810,4.77590504,111150.0,111140.0,0.26496648]
[1760225842461,4.77590504,111150.0,111140.0,0.18107648]
[1760225842812,4.77590504,111150.0,111140.0,0.22563648]
[1760225843225,5.1761089,111150.0,111140.0,0.22563648]
[1760225843872,5.1355189,111150.0,111140.0,0.26496648]
[1760225844427,4.73531504,111150.0,111140.0,0.26496648]
[1760225844872,4.75073504,111150.0,111140.0,0.26496648]
[1760225845233,4.77590504,111150.0,111140.0,0.26496648]
[1760225845378,4.77590504,111150.0,111140.0,0.22563648]
[1760225845580,5.1761089,111150.0,111140.0,0.22563648]
[1760225845790,5.23048293,111150.0,111140.0,0.18107648]
[1760225846231,1.30913793,111150.0,111140.0,0.18107648]
[1760225846483,5.23048293,111150.0,111140.0,0.18107648]
[1760225846994,1.30913793,111150.0,111140.0,0.18107648]
[1760225847204,5.41041995,111150.0,111140.0,0.18107648]
[1760225847429,5.35139409,111150.0,111140.0,0.00112327]
[1760225847631,5.35139409,111150.0,111140.0,0.18107648]
[1760225848276,5.50726708,111150.0,111140.0,0.18107648]
[1760225848505,4.44129821,111140.0,111130.0,0.0004]
[1760225848720,5.24287366,111140.0,111130.0,0.0004]
[1760225848935,5.29699366,111140.0,111130.0,0.1803694]
[1760225849388,5.47694687,111140.0,111130.0,0.1803694]
[1760225849874,5.50709877,111140.0,111130.0,0.16911865]
[1760225850394,1.5858669,111140.0,111120.0,0.18033053]
[1760225850599,0.84288772,111130.0,111120.0,0.18033053]
[1760225850797,4.80027292,111130.0,111120.0,0.18033053]
[1760225851047,4.82544292,111130.0,111120.0,0.18033053]
[1760225851708,4.65362542,111130.0,111120.0,0.18033053]
[1760225852066,0.73228042,111130.0,111120.0,0.18033053]
[1760225852269,4.65362542,111130.0,111120.0,0.18033053]
[1760225853279,4.39628906,111130.0,111120.0,0.20583053]
[1760225853452,0.57012481,111130.0,111120.0,0.18033053]
[1760225853667,4.49146981,111130.0,111120.0,0.18033053]
[1760225854074,4.46251981,111130.0,111120.0,0.18033053]
[1760225854285,0.54117481,111130.0,111120.0,0.18150595]
[1760225854626,4.46251981,111130.0,111120.0,0.18150595]
[1760225855073,4.89167367,111130.0,111120.0,0.18150595]
[1760225855287,4.58018915,111130.0,111120.0,0.18150595]
[1760225855718,4.49146981,111130.0,111120.0,0.18150595]
[1760225856151,0.57012481,111130.0,111120.0,0.18150595]
[1760225856367,4.49146981,111130.0,111120.0,0.18150595]
[1760225858520,4.49146007,111130.0,111120.0,0.18150595]
[1760225859005,4.89166393,111130.0,111120.0,0.18150595]
[1760225859242,0.97031893,111130.0,111120.0,0.18150595]
[1760225859474,4.89166393,111130.0,111120.0,0.18150595]
[1760225859942,0.97031893,111130.0,111120.0,0.18150595]
[1760225860181,4.89166393,111130.0,111120.0,0.18150595]
[1760225860423,0.97031893,111130.0,111120.0,0.18150595]
[1760225861126,4.49146007,111130.0,111120.0,0.18150595]
[1760225861909,4.46251007,111130.0,111120.0,0.20698595]
[1760225862143,0.54116507,111130.0,111120.0,0.18150595]
[1760225862399,4.49179007,111130.0,111120.0,0.18150595]
[1760225862858,4.46251007,111130.0,111120.0,0.18150595]
[1760225863066,4.49179007,111130.0,111120.0,0.18150595]
[1760225863265,4.44581494,111130.0,111120.0,0.20698595]
[1760225863713,4.44581494,111130.0,111120.0,0.22589595]
[1760225864381,4.44581494,111130.0,111120.0,0.18150595]
[1760225864608,4.34088419,111130.0,111120.0,0.26501595]
[1760225864832,0.01933533,111130.0,111120.0,0.26501595]
[1760225865054,0.35938559,111140.0,111130.0,0.1799694]
[1760225865323,0.35938559,111140.0,111130.0,0.2634794]
[1760225865324,5.026e-05,111140.0,111130.0,0.2634794]
[1760225865531,0.34005026,111140.0,111130.0,0.26406706]
[1760225866640,4.66159912,111140.0,111130.0,0.26406706]
[1760225867063,4.66159912,111140.0,111130.0,0.26506706]
[1760225867475,4.66159912,111140.0,111130.0,0.26606706]
[1760225867928,4.73450838,111140.0,111130.0,0.26606706]
[1760225868137,4.26139526,111140.0,111130.0,0.26606706]
[1760225868359,4.66159912,111140.0,111130.0,0.26606706]
[1760225869629,4.68674912,111140.0,111130.0,0.22694706]
[1760225870039,4.26139526,111140.0,111130.0,0.26606706]
[1760225870248,4.66159912,111140.0,111130.0,0.26606706]
[1760225871147,0.74025412,111140.0,111130.0,0.26606706]
[1760225871356,0.34005026,111140.0,111130.0,0.26606706]
[1760225871790,0.74025412,111140.0,111130.0,0.26606706]
[1760225872562,0.76540412,111140.0,111130.0,0.22694706]
[1760225872761,4.68674912,111140.0,111130.0,0.22694706]
[1760225873935,4.68674912,111140.0,111130.0,0.18255706]
[1760225874362,4.68674912,111140.0,111130.0,0.20803706]
[1760225874698,4.68674912,111140.0,111130.0,0.22594706]
[1760225875124,4.68674912,111140.0,111130.0,0.22494706]
[1760225875328,4.70610168,111140.0,111130.0,0.22494706]
[1760225875728,4.68674912,111140.0,111130.0,0.22494706]
[1760225876792,4.7061033,111140.0,111130.0,0.22494706]
[1760225878979,4.68674912,111140.0,111130.0,0.22494706]
[1760225879187,4.68095525,111140.0,111130.0,0.26406706]
[1760225879399,4.66159912,111140.0,111130.0,0.26406706]
[1760225879613,0.74025412,111140.0,111130.0,0.26406706]
[1760225880460,4.68674912,111140.0,111130.0,0.22494706]
[1760225880689,4.70610622,111140.0,111130.0,0.22494706]
[1760225882193,4.73462622,111140.0,111130.0,0.18055706]
[1760225883020,4.28075236,111140.0,111130.0,0.26379706]
[1760225883272,4.68095622,111140.0,111130.0,0.26379706]
[1760225883688,4.70699622,111140.0,111130.0,0.26379706]
[1760225884108,4.73551622,111140.0,111130.0,0.18055706]
[1760225884332,4.70699622,111140.0,111130.0,0.18055706]
[1760225884547,4.77407169,111140.0,111130.0,0.18055706]
[1760225885803,0.85272669,111140.0,111130.0,0.18055706]
[1760225886006,4.77407169,111140.0,111130.0,0.18055706]
[1760225886623,4.9540249,111140.0,111130.0,0.18055706]
[1760225886827,5.40346904,111140.0,111130.0,0.18055706]
[1760225887034,5.40346904,111140.0,111130.0,0.00058766]
[1760225887246,5.40346904,111140.0,111130.0,0.18055706]
[1760225887456,0.5199694,111130.0,111120.0,0.1803856]
[1760225887677,5.41745856,111130.0,111120.0,0.0004]
[1760225887884,5.44734174,111130.0,111120.0,0.0004]
[1760225888096,5.46670591,111130.0,111120.0,0.0004]
[1760225888306,5.24173832,111120.0,111110.0,0.0004]
[1760225888525,5.28962249,111120.0,111110.0,0.0004]
[1760225888738,5.42951739,111120.0,111110.0,0.0004]
[1760225889151,5.24953179,111120.0,111110.0,0.1804018]
[1760225889357,5.22439623,111120.0,111110.0,0.1804018]
[1760225890002,5.13567689,111120.0,111110.0,0.1804018]
[1760225890205,5.11631272,111120.0,111110.0,0.1804018]
[1760225890410,4.77631272,111120.0,111110.0,0.1804018]
[1760225890893,4.41373768,111120.0,111110.0,0.2259518]
[1760225891089,0.49239268,111120.0,111110.0,0.2259518]
[1760225891329,4.41373768,111120.0,111110.0,0.2259518]
[1760225891978,4.38769768,111120.0,111110.0,0.2636418]
[1760225892162,4.32154886,111120.0,111110.0,0.2636418]